fUST/lending_fUST_20260112
["ID","MTS","AMOUNT","RATE_DAILY","PERIOD"]
[401344296,1768149040799,-468.77,8.6e-05,2]
[401344298,1768149040808,-500.0,8.63e-05,2]
[401344300,1768149040817,-500.0,8.63e-05,2]
[401344302,1768149040827,-500.0,8.63e-05,2]
[401344304,1768149040836,-450.0,8.63e-05,2]
[401344306,1768149040845,-459.0,8.63e-05,2]
[401344308,1768149040854,-500.0,8.63e-05,2]
[401344310,1768149040863,-500.0,8.63e-05,2]
[401344312,1768149040872,-163.14839871,8.63e-05,2]
[401344314,1768149040882,-3174.0,8.63e-05,2]
[401344316,1768149040891,-500.0,8.644e-05,2]
[401344318,1768149040900,-300.0,8.644e-05,2]
[401344320,1768149040910,-300.0,8.644e-05,2]
[401344322,1768149040920,-300.0,8.644e-05,2]
[401344324,1768149040930,-300.0,8.644e-05,2]
[401344326,1768149040939,-300.0,8.644e-05,2]
[401344328,1768149040949,-300.0,8.644e-05,2]
[401344330,1768149040958,-300.0,8.644e-05,2]
[401344332,1768149040968,-300.0,8.644e-05,2]
[401344334,1768149040977,-300.0,8.644e-05,2]
[401344336,1768149040986,-300.0,8.644e-05,2]
[401344338,1768149040996,-300.0,8.644e-05,2]
[401344340,1768149041004,-300.0,8.644e-05,2]
[401344342,1768149041015,-300.0,8.644e-05,2]
[401344344,1768149041024,-300.0,8.644e-05,2]
[401344346,1768149041033,-300.0,8.644e-05,2]
[401344348,1768149041043,-600.0,8.644e-05,2]
[401344350,1768149041053,-638.09290909,8.767e-05,2]
[401344352,1768149041063,-500.0,8.767e-05,2]
[401344354,1768149041072,-500.0,8.767e-05,2]
[401344356,1768149041081,-459.0,8.767e-05,2]
[401344358,1768149041091,-500.0,8.767e-05,2]
[401344360,1768149041100,-250.0,8.767e-05,2]
[401344362,1768149041109,-500.0,8.767e-05,2]
[401344364,1768149041119,-3174.0,8.767e-05,2]
[401344366,1768149041130,-500.0,8.904e-05,2]
[401344368,1768149041140,-500.0,8.904e-05,2]
[401344370,1768149041149,-459.0,8.904e-05,2]
[401344372,1768149041158,-500.0,8.904e-05,2]
[401344374,1768149041169,-500.0,8.904e-05,2]
[401344376,1768149041178,-3174.0,8.904e-05,2]
[401344378,1768149041187,-504.16147893,8.918e-05,2]
[401344380,1768149041196,-300.0,9.04e-05,2]
[401344382,1768149041205,-1680.0,9.04e-05,2]
[401344384,1768149041214,-500.0,9.041e-05,2]
[401344386,1768149041224,-500.0,9.041e-05,2]
[401344388,1768149041233,-459.0,9.041e-05,2]
[401344390,1768149041242,-500.0,9.041e-05,2]
[401344392,1768149041252,-3174.0,9.041e-05,2]
[401344394,1768149041262,-500.0,9.041e-05,2]
[401344396,1768149041271,-1082.2364512,9.098e-05,2]
[401344398,1768149041281,-468.77,9.1e-05,2]
[401344400,1768149041290,-500.0,9.178e-05,2]
[401344402,1768149041299,-500.0,9.178e-05,2]
[401344404,1768149041309,-459.0,9.178e-05,2]
[401344406,1768149041319,-500.0,9.178e-05,2]
[401344408,1768149041329,-3174.0,9.178e-05,2]
[401344410,1768149041338,-500.0,9.178e-05,2]
[401344412,1768149041347,-6701.9002789,9.221e-05,2]
[401344414,1768149041356,-151.74,9.3e-05,2]
[401344416,1768149041366,-1412.76713674,9.306e-05,2]
[401344418,1768149041375,-500.0,9.315e-05,2]
[401344420,1768149041384,-500.0,9.315e-05,2]
[401344422,1768149041393,-644.94578501,9.315e-05,2]
[401344424,1768149041403,-459.0,9.315e-05,2]
[401344426,1768149041412,-3174.0,9.315e-05,2]
[401344428,1768149041423,-500.0,9.315e-05,2]
[401344430,1768149041433,-500.0,9.452e-05,2]
[401344432,1768149041442,-500.0,9.452e-05,2]
[401344434,1768149041454,-459.0,9.452e-05,2]
[401344436,1768149041463,-3174.0,9.452e-05,2]
[401344438,1768149041472,-486.85255522,9.452e-05,2]
[401344440,1768149041481,-586.1219759,9.481e-05,2]
[401344442,1768149041492,-720.0,9.508e-05,2]
[401344444,1768149041501,-11914.4893847,9.54e-05,2]
[401344446,1768149041510,-500.0,9.589e-05,2]
[401344448,1768149041522,-500.0,9.589e-05,2]
[401344450,1768149041531,-459.0,9.589e-05,2]
[401344452,1768149041540,-3174.0,9.589e-05,2]
[401344454,1768149041549,-468.77,9.6e-05,2]
[401344456,1768149041558,-19877.7747975,9.604e-05,2]
[401344458,1768149041568,-470.9785477,9.726e-05,2]
[401344460,1768149041577,-500.0,9.726e-05,2]
[401344462,1768149041587,-459.0,9.726e-05,2]
[401344464,1768149041595,-3174.0,9.726e-05,2]
[401344466,1768149041604,-500.0,9.863e-05,2]
[401344468,1768149041614,-459.0,9.863e-05,2]
[401344470,1768149041623,-3174.0,9.863e-05,2]
[401344472,1768149041632,-369.97779586,9.939e-05,2]
[401344474,1768149041641,-1149.0,9.944e-05,2]
[401344476,1768149041650,-500.0,0.0001,2]
[401344478,1768149041659,-459.0,0.0001,2]
[401344480,1768149041670,-3174.0,0.0001,2]
[401344482,1768149041679,-11880.57819246,0.0001,2]
[401344484,1768149041689,-532.21930964,0.0001,2]
[401344486,1768149041698,-153.90472729,0.0001,2]
[401344488,1768149041707,-151.0,0.0001,2]
[401344490,1768149041716,-151.0,0.0001,2]
[401344492,1768149041726,-151.0,0.0001,2]
[401344494,1768149041736,-151.0,0.0001,2]
[401344496,1768149041745,-151.0,0.0001,2]
[401344498,1768149041755,-151.0,0.0001,2]
[401344500,1768149041764,-151.0,0.0001,2]
[401344502,1768149041774,-151.0,0.0001,2]
[401344504,1768149041784,-151.0,0.0001,2]
[401344506,1768149041793,-151.0,0.0001,2]
[401344508,1768149041803,-151.0,0.0001,2]
[401344510,1768149041812,-151.0,0.0001,2]
[401344512,1768149041821,-151.0,0.0001,2]
[401344514,1768149041831,-151.0,0.0001,2]
[401344516,1768149041840,-151.0,0.0001,2]
[401344518,1768149041851,-1082.2364512,0.00010038,2]
[401344520,1768149041860,-468.77,0.000101,2]
[401344522,1768149041870,-6701.9002789,0.0001012,2]
[401344524,1768149041880,-500.00000003,0.00010137,2]
[401344526,1768149041889,-459.0,0.00010137,2]
[401344528,1768149041899,-3174.0,0.00010137,2]
[401344530,1768149041908,-151.74,0.000102,2]
[401344532,1768149041919,-250.0,0.00010215,2]
[401344534,1768149041930,-459.0,0.00010274,2]
[401344536,1768149041939,-3174.0,0.00010274,2]
[401344538,1768149041948,-4979.17661702,0.00010311,2]
[401344540,1768149041958,-459.0,0.00010411,2]
[401344542,1768149041967,-3174.0,0.00010411,2]
[401344544,1768149041976,-250.0,0.00010411,2]
[401344546,1768149041986,-864.0,0.00010459,2]
[401344548,1768149041996,-459.0,0.00010548,2]
[401344550,1768149042005,-3174.0,0.00010548,2]
[401344552,1768149042014,-468.77,0.000106,2]
[401344554,1768149042024,-11914.4893847,0.00010618,2]
[401344556,1768149042033,-586.1219759,0.00010641,2]
[401344558,1768149042043,-459.0,0.00010685,2]
[401344560,1768149042052,-3174.0,0.00010685,2]
[401344562,1768149042061,-19877.7747975,0.00010745,2]
[401344564,1768149042070,-459.0,0.00010822,2]
[401344566,1768149042079,-3174.0,0.00010822,2]
[401344568,1768149042089,-459.0,0.00010959,2]
[401344570,1768149042098,-3174.0,0.00010959,2]
[401344572,1768149042107,-999.0,0.00010959,2]
[401344574,1768149042118,-1082.2364512,0.00010978,2]
[401344576,1768149042128,-151.0,0.00011,2]
[401344578,1768149042137,-151.0,0.00011,2]
[401344580,1768149042147,-151.0,0.00011,2]
[401344582,1768149042156,-6701.9002789,0.0001102,2]
[401344584,1768149042166,-459.0,0.00011096,2]
[401344586,1768149042175,-3174.0,0.00011096,2]
[401344588,1768149042184,-151.74,0.000111,2]
[401344590,1768149042194,-468.77,0.000112,2]
[401344592,1768149042203,-459.0,0.00011233,2]
[401344594,1768149042213,-3174.0,0.00011233,2]
[401344596,1768149042222,-151.0,0.000113,2]
[401344598,1768149042231,-467.3298436,0.0001137,2]
[401344600,1768149042240,-3177.95015618,0.0001137,2]
[401344602,1768149042249,-151.0,0.000114,2]
[401344614,1768149042339,-151.0,0.000115,2]
[401344616,1768149042365,-1000.0,0.00011505,2]
[401344618,1768149042375,-11914.4893847,0.00011695,2]
[401344620,1768149042384,-468.77,0.000117,2]
[401344622,1768149042394,-151.0,0.000117,2]
[401344625,1768149042404,-151.0,0.000118,2]
[401344626,1768149042414,-586.1219759,0.000118,2]
[401344629,1768149042424,-19877.7747975,0.00011886,2]
[401344630,1768149042434,-151.74,0.000119,2]
[401344632,1768149042444,-426.41508675,0.00011939,2]
[401344635,1768149042453,-151.0,0.000121,2]
[401344637,1768149042466,-151.0,0.000121,2]
[401344638,1768149042476,-468.77,0.000122,2]
[401344640,1768149042485,-151.0,0.000123,2]
[401344642,1768149042494,-664.41,0.00012329,2]
[401344644,1768149042505,-1441.04,0.00012329,2]
[401344647,1768149042515,-1200.87,0.00012329,2]
[401344648,1768149042524,-1000.72,0.00012329,2]
[401344651,1768149042535,-833.94,0.00012329,2]
[401344653,1768149042545,-694.95,0.00012329,2]
[401344654,1768149042554,-579.12,0.00012329,2]
[401344657,1768149042563,-482.6,0.00012329,2]
[401344660,1768149042572,-402.17,0.00012329,2]
[401344663,1768149042582,-335.14,0.00012329,2]
[401344666,1768149042592,-279.28,0.00012329,2]
[401344668,1768149042601,-232.74,0.00012329,2]
[401344669,1768149042611,-193.95,0.00012329,2]
[401344672,1768149042621,-151.0,0.000125,2]
[401344674,1768149042631,-3521.30514597,0.000125,2]
[401344676,1768149042641,-151.0,0.000126,2]
[401344678,1768149042651,-151.0,0.000126,2]
[401344680,1768149042661,-1000.0,0.00012655,2]
[401344682,1768149042674,-244.0,0.00012655,2]
[401344684,1768149042684,-468.77,0.000127,2]
[401344686,1768149042694,-151.74,0.000128,2]
[401344688,1768149042703,-151.0,0.000129,2]
[401344690,1768149042713,-151.0,0.000129,2]
[401344692,1768149042723,-18947.52786222,0.000129,2]
[401344694,1768149042732,-18947.52786216,0.000129,2]
[401344696,1768149042743,-5499.99999901,0.00013,2]
[401344698,1768149042752,-468.77,0.000132,2]
[401344700,1768149042762,-151.0,0.000132,2]
[401344702,1768149042772,-151.0,0.000132,2]
[401344704,1768149042781,-598.53187916,0.00013273,2]
[401344706,1768149042792,-500.0,0.00013273,2]
[401344708,1768149042802,-500.0,0.00013273,2]
[401344710,1768149042812,-500.0,0.00013273,2]
[401344712,1768149042821,-500.0,0.00013273,2]
[401344714,1768149042831,-500.0,0.00013273,2]
[401344716,1768149042841,-192.00163587,0.00013273,2]
[401344718,1768149042851,-283.53645228,0.00013273,2]
[401344720,1768149042861,-218.06691539,0.00013273,2]
[401344722,1768149042870,-500.0,0.00013273,2]
[401344724,1768149042880,-167.57783997,0.00013273,2]
[401344726,1768149042889,-264.35803598,0.00013273,2]
[401344728,1768149042898,-500.0,0.00013273,2]
[401344730,1768149042908,-500.0,0.00013273,2]
[401344732,1768149042919,-500.0,0.00013273,2]
[401344734,1768149042928,-161.94880852,0.00013273,2]
[401344736,1768149042938,-500.0,0.00013273,2]
[401344738,1768149042947,-500.60173231,0.00013273,2]
[401344740,1768149042956,-500.0,0.00013273,2]
[401344742,1768149042965,-500.0,0.00013273,2]
[401344744,1768149042975,-165.63236208,0.00013273,2]
[401344746,1768149042985,-500.0,0.00013273,2]
[401344748,1768149042994,-500.0,0.00013273,2]
[401344750,1768149043003,-500.0,0.00013273,2]
[401344752,1768149043012,-500.0,0.00013273,2]
[401344754,1768149043021,-500.0,0.00013273,2]
[401344756,1768149043030,-500.0,0.00013273,2]
[401344758,1768149043039,-500.0,0.00013273,2]
[401344760,1768149043048,-500.0,0.00013273,2]
[401344762,1768149043057,-500.0,0.00013273,2]
[401344764,1768149043066,-500.0,0.00013273,2]
[401344765,1768149043075,-500.24269708,0.00013273,2]
[401344766,1768149043084,-500.0,0.00013273,2]
[401344767,1768149043093,-500.0,0.00013273,2]
[401344768,1768149043102,-500.0,0.00013273,2]
[401344769,1768149043111,-500.0,0.00013273,2]
[401344770,1768149043119,-217.18518009,0.00013273,2]
[401344771,1768149043128,-500.0,0.00013273,2]
[401344772,1768149043137,-500.0,0.00013273,2]
[401344773,1768149043146,-500.0,0.00013273,2]
[401344774,1768149043155,-500.0,0.00013273,2]
[401344775,1768149043165,-500.0,0.00013273,2]
[401344776,1768149043174,-500.0,0.00013273,2]
[401344777,1768149043183,-500.0,0.00013273,2]
[401344778,1768149043192,-500.0,0.00013273,2]
[401344779,1768149043201,-500.0,0.00013273,2]
[401344780,1768149043211,-500.0,0.00013273,2]
[401344781,1768149043220,-500.50081133,0.00013273,2]
[401344782,1768149043229,-500.0,0.00013273,2]
[401344783,1768149043238,-500.0,0.00013273,2]
[401344784,1768149043248,-500.0,0.00013273,2]
[401344785,1768149043257,-500.0,0.00013273,2]
[401344786,1768149043266,-500.0,0.00013273,2]
[401344787,1768149043275,-185.56231381,0.00013273,2]
[401344788,1768149043284,-519.9936575,0.00013273,2]
[401344789,1768149043293,-500.0,0.00013273,2]
[401344790,1768149043302,-500.0,0.00013273,2]
[401344791,1768149043311,-171.70121258,0.00013273,2]
[401344792,1768149043321,-500.0,0.00013273,2]
[401344793,1768149043331,-500.0,0.00013273,2]
[401344795,1768149043341,-500.0,0.00013273,2]
[401344797,1768149043350,-500.77057988,0.00013273,2]
[401344799,1768149043359,-210.81488028,0.00013273,2]
[401344801,1768149043368,-500.0,0.00013273,2]
[401344803,1768149043377,-500.0,0.00013273,2]
[401344805,1768149043387,-235.75910975,0.00013273,2]
[401344807,1768149043395,-500.0,0.00013273,2]
[401344809,1768149043404,-500.0,0.00013273,2]
[401344811,1768149043414,-500.0,0.00013273,2]
[401344813,1768149043424,-500.0,0.00013273,2]
[401344815,1768149043433,-500.0,0.00013273,2]
[401344816,1768149043443,-500.0,0.00013273,2]
[401344818,1768149043456,-500.0,0.00013273,2]
[401344820,1768149043465,-500.0,0.00013273,2]
[401344822,1768149043474,-500.0,0.00013273,2]
[401344824,1768149043483,-151.0,0.000134,2]
[401344826,1768149043493,-151.0,0.000136,2]
[401344828,1768149043503,-300.0,0.00013673,2]
[401344830,1768149043512,-567.37425029,0.00013698,2]
[401344833,1768149043521,-500.0,0.00013698,2]
[401344835,1768149043532,-500.0,0.00013698,2]
[401344836,1768149043541,-500.0,0.00013698,2]
[401344838,1768149043552,-500.0,0.00013698,2]
[401344840,1768149043561,-500.0,0.00013698,2]
[401344843,1768149043571,-500.0,0.00013698,2]
[401344845,1768149043580,-500.0,0.00013698,2]
[401344847,1768149043589,-500.0,0.00013698,2]
[401344850,1768149043599,-500.0,0.00013698,2]
[401344853,1768149043608,-500.0,0.00013698,2]
[401344855,1768149043617,-500.0,0.00013698,2]
[401344856,1768149043626,-500.0,0.00013698,2]
[401344858,1768149043636,-500.0,0.00013698,2]
[401344860,1768149043647,-500.0,0.00013698,2]
[401344862,1768149043657,-500.0,0.00013698,2]
[401344864,1768149043667,-500.0,0.00013698,2]
[401344866,1768149043676,-500.0,0.00013698,2]
[401344868,1768149043686,-540.43466615,0.00013698,2]
[401344870,1768149043695,-500.0,0.00013698,2]
[401344873,1768149043704,-512.05432454,0.00013698,2]
[401344876,1768149043714,-500.0,0.00013698,2]
[401344879,1768149043723,-500.0,0.00013698,2]
[401344883,1768149043733,-500.0,0.00013698,2]
[401344887,1768149043743,-500.0,0.00013698,2]
[401344891,1768149043753,-500.0,0.00013698,2]
[401344895,1768149043764,-500.0,0.00013698,2]
[401344897,1768149043775,-500.0,0.00013698,2]
[401344899,1768149043784,-500.0,0.00013698,2]
[401344901,1768149043793,-500.0,0.00013698,2]
[401344903,1768149043802,-500.0,0.00013698,2]
[401344905,1768149043812,-500.0,0.00013698,2]
[401344907,1768149043821,-500.0,0.00013698,2]
[401344909,1768149043830,-500.0,0.00013698,2]
[401344911,1768149043839,-500.0,0.00013698,2]
[401344913,1768149043849,-400.99242796,0.00013698,2]
[401344914,1768149043859,-500.0,0.00013698,2]
[401344916,1768149043868,-500.0,0.00013698,2]
[401344919,1768149043878,-494.39623064,0.00013698,2]
[401344921,1768149043888,-500.0,0.00013698,2]
[401344923,1768149043898,-500.0,0.00013698,2]
[401344925,1768149043908,-249.4018436,0.00013698,2]
[401344927,1768149043918,-937.65,0.00013698,2]
[401344929,1768149043928,-937.65,0.00013698,2]
[401344930,1768149043937,-937.65,0.00013698,2]
[401344932,1768149043946,-937.65,0.00013698,2]
[401344934,1768149043957,-937.65,0.00013698,2]
[401344937,1768149043966,-937.65,0.00013698,2]
[401344939,1768149043976,-937.65,0.00013698,2]
[401344941,1768149043985,-937.65,0.00013698,2]
[401344942,1768149043994,-937.65,0.00013698,2]
[401344945,1768149044004,-937.65,0.00013698,2]
[401344946,1768149044013,-937.65,0.00013698,2]
[401344948,1768149044023,-937.65,0.00013698,2]
[401344951,1768149044032,-937.65,0.00013698,2]
[401344952,1768149044041,-937.65,0.00013698,2]
[401344954,1768149044051,-937.65,0.00013698,2]
[401344956,1768149044060,-937.65,0.00013698,2]
[401344958,1768149044069,-937.65,0.00013698,2]
[401344960,1768149044078,-937.65,0.00013698,2]
[401344962,1768149044088,-937.65,0.00013698,2]
[401344964,1768149044097,-937.65,0.00013698,2]
[401344967,1768149044106,-937.65,0.00013698,2]
[401344968,1768149044115,-937.65,0.00013698,2]
[401344970,1768149044124,-937.65,0.00013698,2]
[401344973,1768149044135,-937.8,0.00013698,2]
[401344975,1768149044143,-500.0,0.00013698,2]
[401344977,1768149044152,-500.0,0.00013698,2]
[401344978,1768149044161,-619.23329996,0.00013698,2]
[401344980,1768149044171,-500.0,0.00013698,2]
[401344982,1768149044180,-500.0,0.00013698,2]
[401344984,1768149044189,-500.0,0.00013698,2]
[401344986,1768149044198,-500.0,0.00013698,2]
[401344988,1768149044207,-203.41009518,0.00013698,2]
[401344990,1768149044215,-500.0,0.00013698,2]
[401344992,1768149044224,-500.0,0.00013698,2]
[401344994,1768149044234,-500.0,0.00013698,2]
[401344996,1768149044243,-500.0,0.00013698,2]
[401344998,1768149044252,-500.0,0.00013698,2]
[401345000,1768149044262,-500.0,0.00013698,2]
[401345002,1768149044272,-500.0,0.00013698,2]
[401345004,1768149044281,-500.0,0.00013698,2]
[401345005,1768149044290,-500.0,0.00013698,2]
[401345016,1768149044380,-500.0,0.00013698,2]
[401345018,1768149044390,-500.0,0.00013698,2]
[401345020,1768149044399,-500.0,0.00013698,2]
[401345022,1768149044408,-500.0,0.00013698,2]
[401345024,1768149044418,-500.0,0.00013698,2]
[401345026,1768149044428,-500.0,0.00013698,2]
[401345028,1768149044437,-500.0,0.00013698,2]
[401345030,1768149044446,-186.7,0.00013698,2]
[401345032,1768149044455,-1000.0,0.00013698,2]
[401345034,1768149044467,-1000.0,0.00013698,2]
[401345035,1768149044476,-1000.0,0.00013698,2]
[401345037,1768149044486,-1000.0,0.00013698,2]
[401345039,1768149044495,-1000.0,0.00013698,2]
[401345041,1768149044505,-1000.0,0.00013698,2]
[401345043,1768149044515,-593.71236514,0.00013698,2]
[401345045,1768149044525,-500.0,0.00013698,2]
[401345047,1768149044534,-500.0,0.00013698,2]
[401345049,1768149044545,-500.0,0.00013698,2]
[401345051,1768149044555,-500.0,0.00013698,2]
[401345053,1768149044565,-500.0,0.00013698,2]
[401345056,1768149044575,-500.0,0.00013698,2]
[401345057,1768149044585,-500.0,0.00013698,2]
[401345060,1768149044596,-500.0,0.00013698,2]
[401345061,1768149044604,-500.0,0.00013698,2]
[401345063,1768149044614,-500.0,0.00013698,2]
[401345065,1768149044624,-500.0,0.00013698,2]
[401345067,1768149044633,-500.0,0.00013698,2]
[401345069,1768149044643,-500.0,0.00013698,2]
[401345071,1768149044652,-500.0,0.00013698,2]
[401345073,1768149044662,-500.0,0.00013698,2]
[401345075,1768149044676,-500.0,0.00013698,2]
[401345077,1768149044685,-500.0,0.00013698,2]
[401345079,1768149044694,-500.0,0.00013698,2]
[401345081,1768149044703,-500.0,0.00013698,2]
[401345083,1768149044711,-500.0,0.00013698,2]
[401345085,1768149044721,-500.0,0.00013698,2]
[401345087,1768149044730,-532.30741949,0.00013698,2]
[401345089,1768149044739,-2760.4,0.00013698,2]
[401345091,1768149044748,-2760.4,0.00013698,2]
[401345092,1768149044758,-2760.4,0.00013698,2]
[401345094,1768149044767,-2760.4,0.00013698,2]
[401345096,1768149044776,-2760.4,0.00013698,2]
[401345098,1768149044785,-2760.4,0.00013698,2]
[401345100,1768149044794,-2760.4,0.00013698,2]
[401345102,1768149044804,-2760.4,0.00013698,2]
[401345104,1768149044813,-2760.4,0.00013698,2]
[401345106,1768149044822,-1583.65138088,0.00013698,2]
[401345121,1768149044953,-1176.74861912,0.00013698,2]
[401345122,1768149044963,-2760.4,0.00013698,2]
[401345124,1768149044972,-2760.4,0.00013698,2]
[401345126,1768149044981,-2760.4,0.00013698,2]
[401345128,1768149044990,-2760.4,0.00013698,2]
[401345130,1768149045000,-2760.4,0.00013698,2]
[401345132,1768149045010,-2760.4,0.00013698,2]
[401345134,1768149045019,-2760.4,0.00013698,2]
[401345136,1768149045029,-2760.4,0.00013698,2]
[401345138,1768149045038,-2760.4,0.00013698,2]
[401345140,1768149045048,-2760.4,0.00013698,2]
[401345142,1768149045058,-2760.4,0.00013698,2]
[401345144,1768149045068,-2760.4,0.00013698,2]
[401345146,1768149045078,-2760.4,0.00013698,2]
[401345148,1768149045087,-2760.46270133,0.00013698,2]
[401345150,1768149045096,-154502.517058,0.00013698,2]
[401345152,1768149045106,-500.0,0.00013698,2]
[401345154,1768149045115,-500.0,0.00013698,2]
[401345156,1768149045124,-500.0,0.00013698,2]
[401345158,1768149045134,-500.0,0.00013698,2]
[401345160,1768149045143,-500.0,0.00013698,2]
[401345162,1768149045152,-500.0,0.00013698,2]
[401345164,1768149045161,-500.0,0.00013698,2]
[401345166,1768149045174,-500.0,0.00013698,2]
[401345168,1768149045182,-500.0,0.00013698,2]
[401345170,1768149045191,-500.0,0.00013698,2]
[401345172,1768149045200,-239.37126777,0.00013698,2]
[401345174,1768149045209,-890.9559035,0.00013699,2]
[401345176,1768149045218,-500.0,0.00013699,2]
[401345178,1768149045227,-500.0,0.00013699,2]
[401345180,1768149045236,-500.0,0.00013699,2]
[401345182,1768149045246,-500.0,0.00013699,2]
[401345184,1768149045255,-411.07321341,0.00013699,2]
[401345186,1768149045264,-500.0,0.00013699,2]
[401345187,1768149045273,-500.0,0.00013699,2]
[401345189,1768149045282,-500.0,0.00013699,2]
[401345191,1768149045291,-500.0,0.00013699,2]
[401345193,1768149045300,-250.0,0.00013699,2]
[401345194,1768149045309,-500.0,0.00013699,2]
[401345196,1768149045317,-500.0,0.00013699,2]
[401345198,1768149045327,-434.26717667,0.00013699,2]
[401345200,1768149045336,-160.68274537,0.00013699,2]
[401345202,1768149045345,-500.0,0.00013699,2]
[401345204,1768149045355,-500.0,0.00013699,2]
[401345206,1768149045364,-500.0,0.00013699,2]
[401345208,1768149045374,-500.0,0.00013699,2]
[401345210,1768149045383,-500.0,0.00013699,2]
[401345212,1768149045392,-500.0,0.00013699,2]
[401345214,1768149045402,-500.0,0.00013699,2]
[401345216,1768149045411,-500.0,0.00013699,2]
[401345218,1768149045422,-500.0,0.00013699,2]
[401345220,1768149045431,-500.0,0.00013699,2]
[401345222,1768149045440,-500.0,0.00013699,2]
[401345224,1768149045451,-500.0,0.00013699,2]
[401345226,1768149045463,-500.0,0.00013699,2]
[401345228,1768149045472,-500.0,0.00013699,2]
[401345230,1768149045481,-500.0,0.00013699,2]
[401345232,1768149045492,-500.0,0.00013699,2]
[401345234,1768149045501,-500.0,0.00013699,2]
[401345236,1768149045511,-500.0,0.00013699,2]
[401345238,1768149045520,-500.0,0.00013699,2]
[401345240,1768149045529,-500.0,0.00013699,2]
[401345242,1768149045539,-500.0,0.00013699,2]
[401345244,1768149045548,-500.0,0.00013699,2]
[401345246,1768149045557,-500.0,0.00013699,2]
[401345248,1768149045566,-500.0,0.00013699,2]
[401345250,1768149045575,-500.0,0.00013699,2]
[401345252,1768149045585,-500.0,0.00013699,2]
[401345253,1768149045594,-500.0,0.00013699,2]
[401345255,1768149045604,-500.0,0.00013699,2]
[401345257,1768149045613,-500.0,0.00013699,2]
[401345259,1768149045622,-500.0,0.00013699,2]
[401345261,1768149045632,-500.0,0.00013699,2]
[401345263,1768149045641,-159.62784546,0.00013699,2]
[401345265,1768149045651,-500.0,0.00013699,2]
[401345267,1768149045661,-594.31332583,0.00013699,2]
[401345269,1768149045673,-500.0,0.00013699,2]
[401345271,1768149045685,-500.0,0.00013699,2]
[401345273,1768149045695,-500.0,0.00013699,2]
[401345275,1768149045704,-500.0,0.00013699,2]
[401345277,1768149045714,-313.17222022,0.00013699,2]
[401345279,1768149045723,-500.0,0.00013699,2]
[401345281,1768149045732,-500.0,0.00013699,2]
[401345283,1768149045742,-500.0,0.00013699,2]
[401345285,1768149045752,-500.0,0.00013699,2]
[401345287,1768149045762,-500.0,0.00013699,2]
[401345289,1768149045771,-500.0,0.00013699,2]
[401345291,1768149045780,-500.0,0.00013699,2]
[401345293,1768149045789,-500.0,0.00013699,2]
[401345295,1768149045798,-500.0,0.00013699,2]
[401345297,1768149045806,-500.0,0.00013699,2]
[401345299,1768149045816,-500.0,0.00013699,2]
[401345301,1768149045824,-295.9151759,0.00013699,2]
[401345302,1768149045833,-500.0,0.00013699,2]
[401345304,1768149045843,-268.13097792,0.00013699,2]